[Event "17th Spilimbergo Open 2019"]
[Site "Spilimbergo"]
[Date "2019.08.12"]
[Round "5.5"]
[White "Basso, Pier Luigi"]
[Black "Skembris, Spyridon"]
[Result "0-1"]
[WhiteElo "2576"]
[BlackElo "2413"]
[PlyCount "84"]
[EventDate "2019.08.09"]
[EventType "swiss"]
[EventCountry "ITA"]
[TimeControl "5400+30"]
[WhiteClock "0:07:08"]
[BlackClock "0:02:23"]

1. d4 {[%emt 0:02:30]} d5 {[%emt 0:00:30]} 2. c4 {[%emt 0:00:30]} c6 {[%emt 0:00:30]} 3. Nf3 {[%emt 0:00:30]} Nf6 {[%emt 0:00:00]} 4. Nc3 {[%emt 0:00:30]} g6 {[%emt 0:00:00]} 5. e3 {[%emt 0:00:00]} Bg7 {[%emt 0:00:30]} 6. Bd3 {[%emt 0:00:00]} O-O {[%emt 0:00:30]} 7. O-O {[%emt 0:00:00]} Nbd7 {[%emt 0:04:30]} 8. cxd5 {[%emt 0:00:00]} Nxd5 {[%emt 0:00:00]} 9. Nxd5 {[%emt 0:00:30]} cxd5 {[%emt 0:01:00]} 10. Qb3 {[%emt 0:00:00]} Nb6 {[%emt 0:00:30]} 11. a4 {[%emt 0:04:00]} Bf5 {[%emt 0:04:30]} 12. Bxf5 {[%emt 0:14:30]} gxf5 {[%emt 0:00:30]} 13. Qd3 {[%emt 0:00:30]} e6 {[%emt 0:01:30]} 14. b3 {[%emt 0:00:00]} Bf6 {[%emt 0:11:30]} 15. Bd2 {[%emt 0:19:00]} Qd6 {[%emt 0:02:30]} 16. Kh1 {[%emt 0:03:30]} Nd7 {[%emt 0:02:30]} 17. Bc1 {[%emt 0:08:30]} Rfc8 {[%emt 0:01:30]} 18. Ba3 {[%emt 0:01:30]} Qb6 {[%emt 0:03:30]} 19. Rg1 {[%emt 0:02:30]} Kh8 {[%emt 0:15:30]} 20. g4 {[%emt 0:01:30]} fxg4 {[%emt 0:00:30]} 21. Rxg4 {[%emt 0:00:30]} Rg8 {[%emt 0:00:30]} 22. Rg3 {[%emt 0:00:00]} Rac8 {[%emt 0:08:30]} 23. Ng1 {[%emt 0:23:44]} e5 {[%emt 0:15:30]} 24. dxe5 {[%emt 0:05:01]} Nxe5 {[%emt 0:05:30]} 25. Qxd5 {[%emt 0:01:16]} Nc4 {[%emt 0:08:53]} 26. bxc4 {[%emt 0:11:52]} Bxa1 {[%emt 0:00:38]} 27. Bd6 {[%emt 0:00:28]} Qc6 {[%emt 0:00:38]} 28. Nf3 {[%emt 0:00:30]} Qxd5 {[%emt 0:07:04]} 29. cxd5 {[%emt 0:00:06]} Rxg3 {[%emt 0:01:11]} 30. Bxg3 {[%emt 0:00:02]} Kg7 {[%emt 0:00:18]} 31. d6 {[%emt 0:00:12]} f6 {[%emt 0:00:14]} 32. e4 {[%emt 0:01:15]} Kf7 {[%emt 0:00:14]} 33. Nh4 {[%emt 0:00:34]} Ke6 {[%emt 0:00:12]} 34. Nf5 {[%emt 0:00:08]} Rc4 {[%emt 0:00:24]} 35. f3 {[%emt 0:01:17]} Rxa4 {[%emt 0:00:33]} 36. Ne3 {[%emt 0:00:01]} Be5 {[%emt 0:00:00]} 37. f4 {[%emt 0:00:27]} Bxd6 {[%emt 0:00:09]} 38. f5+ {[%emt 0:00:33]} Kd7 {[%emt 0:00:04]} 39. Nd5 {[%emt 0:00:05]} Be7 {[%emt 0:00:30]} 40. e5 {[%emt 0:00:23]} fxe5 {[%emt 0:00:06]} 41. f6 {[%emt 0:00:06]} Bf8 {[%emt 0:00:14]} 42. f7 {[%emt 0:00:07]} Ke6 0-1

[Event "17th Spilimbergo Open 2019"]
[Site "Spilimbergo"]
[Date "2019.08.12"]
[Round "5.6"]
[White "Brunello, Sabino"]
[Black "Sardana, Rishi"]
[Result "0-1"]
[WhiteElo "2556"]
[BlackElo "2410"]
[PlyCount "64"]
[EventDate "2019.08.09"]
[EventType "swiss"]
[EventCountry "ITA"]
[TimeControl "5400+30"]
[WhiteClock "0:19:00"]
[BlackClock "0:00:32"]

1. Nf3 {[%emt 0:00:30]} Nf6 {[%emt 0:00:30]} 2. g3 {[%emt 0:00:00]} d5 {[%emt 0:00:30]} 3. Bg2 {[%emt 0:00:00]} e6 {[%emt 0:01:30]} 4. O-O {[%emt 0:00:30]} c5 {[%emt 0:00:30]} 5. d3 {[%emt 0:04:30]} Nc6 {[%emt 0:00:00]} 6. Nbd2 {[%emt 0:00:30]} Be7 {[%emt 0:00:00]} 7. e4 {[%emt 0:01:30]} O-O {[%emt 0:00:30]} 8. Re1 {[%emt 0:03:30]} b5 {[%emt 0:00:00]} 9. e5 {[%emt 0:16:30]} Nd7 {[%emt 0:01:00]} 10. Nf1 {[%emt 0:01:30]} Bb7 {[%emt 0:00:30]} 11. h4 {[%emt 0:00:00]} Qc7 {[%emt 0:00:30]} 12. Bf4 {[%emt 0:01:00]} Rfc8 {[%emt 0:00:30]} 13. N1h2 {[%emt 0:00:30]} a5 {[%emt 0:06:30]} 14. h5 {[%emt 0:03:30]} h6 {[%emt 0:03:30]} 15. Ng4 {[%emt 0:03:30]} Bf8 {[%emt 0:00:30]} 16. Qd2 {[%emt 0:02:30]} Qd8 {[%emt 0:04:30]} 17. Ngh2 {[%emt 0:06:30]} b4 {[%emt 0:19:30]} 18. g4 {[%emt 0:00:00]} Be7 {[%emt 0:00:30]} 19. Re2 {[%emt 0:06:00]} c4 {[%emt 0:09:30]} 20. d4 {[%emt 0:08:30]} c3 {[%emt 0:01:30]} 21. bxc3 {[%emt 0:01:30]} bxc3 {[%emt 0:00:00]} 22. Qc1 {[%emt 0:04:30]} Ba6 {[%emt 0:01:00]} 23. Re1 {[%emt 0:02:30]} Rab8 {[%emt 0:01:30]} 24. a3 {[%emt 0:09:30]} Nb6 {[%emt 0:11:30]} 25. Kh1 {[%emt 0:02:30]} Nc4 {[%emt 0:01:30]} 26. Bh3 {[%emt 0:11:03]} Qb6 {[%emt 0:13:30]} 27. g5 {[%emt 0:06:31]} Nxd4 {[%emt 0:02:30]} 28. gxh6 {[%emt 0:00:07]} Nxf3 {[%emt 0:00:30]} 29. Nxf3 {[%emt 0:00:02]} Qxf2 {[%emt 0:00:30]} 30. Rf1 {[%emt 0:02:17]} Qe2 {[%emt 0:00:30]} 31. hxg7 {[%emt 0:02:37]} Nd2 {[%emt 0:01:30]} 32. Nxd2 {[%emt 0:01:21]} cxd2 0-1

[Event "17th Spilimbergo Open 2019"]
[Site "Spilimbergo"]
[Date "2019.08.12"]
[Round "5.7"]
[White "Dragnev, Valentin"]
[Black "Nikolovski, Nikola"]
[Result "1-0"]
[WhiteElo "2535"]
[BlackElo "2409"]
[PlyCount "53"]
[EventDate "2019.08.09"]
[EventType "swiss"]
[EventCountry "ITA"]
[TimeControl "5400+30"]
[WhiteClock "0:01:18"]
[BlackClock "0:14:49"]

1. Nf3 {[%emt 0:04:30]} e6 {[%emt 0:01:30]} 2. g3 {[%emt 0:00:00]} f5 {[%emt 0:02:30]} 3. Bg2 {[%emt 0:00:00]} Nf6 {[%emt 0:00:30]} 4. O-O {[%emt 0:00:30]} Be7 {[%emt 0:00:30]} 5. c4 {[%emt 0:00:00]} O-O {[%emt 0:00:00]} 6. d4 {[%emt 0:00:00]} d6 {[%emt 0:00:00]} 7. Nc3 {[%emt 0:00:30]} Qe8 {[%emt 0:00:30]} 8. b4 {[%emt 0:00:30]} Nc6 {[%emt 0:08:30]} 9. Qb3 {[%emt 0:02:30]} Qh5 {[%emt 0:23:30]} 10. d5 {[%emt 0:04:30]} Ne5 {[%emt 0:04:30]} 11. Nb5 {[%emt 0:20:30]} Bd8 {[%emt 0:04:30]} 12. c5 {[%emt 0:18:30]} Nxf3+ {[%emt 0:23:30]} 13. Bxf3 {[%emt 0:00:30]} Qf7 {[%emt 0:12:24]} 14. cxd6 {[%emt 0:19:30]} Nxd5 {[%emt 0:00:09]} 15. dxc7 {[%emt 0:02:30]} Bf6 {[%emt 0:04:39]} 16. Rb1 {[%emt 0:00:30]} Bd7 {[%emt 0:07:25]} 17. Nd6 {[%emt 0:01:30]} Qe7 {[%emt 0:00:08]} 18. Nxf5 {[%emt 0:01:30]} exf5 {[%emt 0:01:29]} 19. Be3 {[%emt 0:03:09]} Be6 {[%emt 0:02:26]} 20. Bxd5 {[%emt 0:00:09]} Bf7 {[%emt 0:00:39]} 21. Bc5 {[%emt 0:00:55]} Qd7 {[%emt 0:00:07]} 22. Rfd1 {[%emt 0:02:43]} Rfc8 {[%emt 0:00:07]} 23. Bxf7+ {[%emt 0:02:22]} Qxf7 {[%emt 0:00:06]} 24. Rd7 {[%emt 0:00:32]} Qxb3 {[%emt 0:00:10]} 25. Rxb3 {[%emt 0:00:05]} Be5 {[%emt 0:00:04]} 26. Re3 {[%emt 0:00:16]} Bxc7 {[%emt 0:01:49]} 27. Ree7 1-0

[Event "17th Spilimbergo Open 2019"]
[Site "Spilimbergo"]
[Date "2019.08.12"]
[Round "5.8"]
[White "Barp, Alberto"]
[Black "Admiraal, Miguoel"]
[Result "1-0"]
[WhiteElo "2411"]
[BlackElo "2513"]
[PlyCount "89"]
[EventDate "2019.08.09"]
[EventType "swiss"]
[EventCountry "ITA"]
[TimeControl "5400+30"]
[WhiteClock "0:02:26"]
[BlackClock "0:08:10"]

1. d4 {[%emt 0:00:30]} e6 {[%emt 0:07:30]} 2. c4 {[%emt 0:02:30]} b6 {[%emt 0:00:30]} 3. e4 {[%emt 0:00:00]} Bb7 {[%emt 0:00:30]} 4. Bd3 {[%emt 0:00:00]} Bb4+ {[%emt 0:00:00]} 5. Kf1 {[%emt 0:00:30]} Be7 {[%emt 0:00:00]} 6. Nc3 {[%emt 0:00:30]} d6 {[%emt 0:00:00]} 7. Nf3 {[%emt 0:02:30]} Nd7 {[%emt 0:00:00]} 8. g3 {[%emt 0:01:30]} Bf6 {[%emt 0:00:30]} 9. Kg2 {[%emt 0:01:30]} Ne7 {[%emt 0:00:00]} 10. h4 {[%emt 0:08:30]} O-O {[%emt 0:09:00]} 11. Bg5 {[%emt 0:13:30]} c5 {[%emt 0:13:30]} 12. d5 {[%emt 0:07:30]} Bxc3 {[%emt 0:16:30]} 13. bxc3 {[%emt 0:01:30]} f5 {[%emt 0:00:30]} 14. Re1 {[%emt 0:19:30]} fxe4 {[%emt 0:16:30]} 15. Bxe4 {[%emt 0:02:30]} e5 {[%emt 0:00:30]} 16. Bc2 {[%emt 0:10:30]} Nf6 {[%emt 0:07:30]} 17. Qd3 {[%emt 0:02:30]} Rf7 {[%emt 0:00:30]} 18. h5 {[%emt 0:03:30]} b5 {[%emt 0:02:30]} 19. cxb5 {[%emt 0:05:02]} Bxd5 {[%emt 0:05:31]} 20. Bxf6 {[%emt 0:01:04]} gxf6 {[%emt 0:00:17]} 21. Bb3 {[%emt 0:01:26]} Bxb3 {[%emt 0:07:11]} 22. axb3 {[%emt 0:02:10]} d5 {[%emt 0:00:01]} 23. Nh4 {[%emt 0:00:00]} Qd7 {[%emt 0:01:08]} 24. c4 {[%emt 0:01:00]} Rd8 {[%emt 0:00:41]} 25. Ra6 {[%emt 0:01:04]} dxc4 {[%emt 0:05:26]} 26. Qxd7 {[%emt 0:01:22]} Rxd7 {[%emt 0:00:01]} 27. bxc4 {[%emt 0:00:08]} Nc8 {[%emt 0:00:24]} 28. Nf5 {[%emt 0:00:27]} Kf8 {[%emt 0:00:08]} 29. Rc6 {[%emt 0:00:51]} Nb6 {[%emt 0:01:48]} 30. Ra1 {[%emt 0:03:12]} Rd8 {[%emt 0:02:33]} 31. Rxc5 {[%emt 0:00:16]} Rfd7 {[%emt 0:01:40]} 32. Rc6 {[%emt 0:00:37]} Kf7 {[%emt 0:00:03]} 33. Ra6 {[%emt 0:00:52]} Rb8 {[%emt 0:01:35]} 34. Ne3 {[%emt 0:01:39]} Rdb7 {[%emt 0:01:39]} 35. Ng4 {[%emt 0:00:08]} Nd7 {[%emt 0:00:52]} 36. Nxf6 {[%emt 0:00:11]} Nxf6 {[%emt 0:00:15]} 37. Rxf6+ {[%emt 0:00:04]} Kg8 {[%emt 0:00:03]} 38. Rfe6 {[%emt 0:02:10]} Rc8 {[%emt 0:00:43]} 39. Rac6 {[%emt 0:00:33]} Rxc6 {[%emt 0:00:58]} 40. Rxc6 {[%emt 0:00:09]} Kf7 {[%emt 0:00:06]} 41. Kf3 {[%emt 0:00:01]} Rd7 {[%emt 0:00:07]} 42. Ke4 {[%emt 0:00:13]} Rd2 {[%emt 0:00:12]} 43. Kxe5 {[%emt 0:00:08]} Rxf2 {[%emt 0:00:09]} 44. Rc7+ {[%emt 0:00:03]} Kg8 {[%emt 0:00:03]} 45. Rxa7 1-0

[Event "17th Spilimbergo Open 2019"]
[Site "Spilimbergo"]
[Date "2019.08.12"]
[Round "5.9"]
[White "Vetoshko, Volodymyr"]
[Black "Brunello, Marina"]
[Result "1-0"]
[WhiteElo "2495"]
[BlackElo "2400"]
[PlyCount "47"]
[EventDate "2019.08.09"]
[EventType "swiss"]
[EventCountry "ITA"]
[TimeControl "5400+30"]
[WhiteClock "0:12:51"]
[BlackClock "0:13:00"]

1. e4 {[%emt 0:00:30]} e5 {[%emt 0:00:30]} 2. Nf3 {[%emt 0:00:30]} Nf6 {[%emt 0:00:00]} 3. Nc3 {[%emt 0:00:30]} Bb4 {[%emt 0:03:00]} 4. Nxe5 {[%emt 0:08:30]} Qe7 {[%emt 0:13:30]} 5. Nd3 {[%emt 0:01:30]} Bxc3 {[%emt 0:01:30]} 6. dxc3 {[%emt 0:00:30]} Nxe4 {[%emt 0:00:30]} 7. Be2 {[%emt 0:10:30]} O-O {[%emt 0:07:30]} 8. O-O {[%emt 0:00:30]} d5 {[%emt 0:00:30]} 9. Re1 {[%emt 0:01:30]} Bf5 {[%emt 0:02:30]} 10. Bf1 {[%emt 0:18:30]} Qd8 {[%emt 0:06:30]} 11. Qf3 {[%emt 0:15:30]} Bg6 {[%emt 0:04:30]} 12. Nf4 {[%emt 0:01:30]} Nc6 {[%emt 0:16:30]} 13. c4 {[%emt 0:04:30]} Nb4 {[%emt 0:19:55]} 14. Qb3 {[%emt 0:04:30]} a5 {[%emt 0:00:20]} 15. cxd5 {[%emt 0:04:30]} Nc5 {[%emt 0:01:28]} 16. Qc4 {[%emt 0:02:30]} Nd7 {[%emt 0:00:15]} 17. Nxg6 {[%emt 0:02:30]} hxg6 {[%emt 0:00:03]} 18. Rd1 {[%emt 0:02:19]} Nb6 {[%emt 0:05:52]} 19. Qb3 {[%emt 0:00:36]} Qh4 {[%emt 0:00:52]} 20. c4 {[%emt 0:01:56]} Qe4 {[%emt 0:00:23]} 21. Bd2 {[%emt 0:03:55]} Qc2 {[%emt 0:02:02]} 22. Qxc2 {[%emt 0:01:11]} Nxc2 {[%emt 0:00:07]} 23. Rac1 {[%emt 0:00:03]} Nd4 {[%emt 0:00:22]} 24. Bf4 1-0

[Event "17th Spilimbergo Open 2019"]
[Site "Spilimbergo"]
[Date "2019.08.12"]
[Round "5.10"]
[White "Rogulj, Branko"]
[Black "Miron, Lucian-Costin"]
[Result "1/2-1/2"]
[WhiteElo "2410"]
[BlackElo "2494"]
[PlyCount "130"]
[EventDate "2019.08.09"]
[EventType "swiss"]
[EventCountry "ITA"]
[TimeControl "5400+30"]
[WhiteClock "0:10:44"]

1. e4 {[%emt 0:00:30]} e5 {[%emt 0:05:30]} 2. Nf3 {[%emt 0:00:00]} Nc6 {[%emt 0:00:00]} 3. Bb5 {[%emt 0:00:00]} a6 {[%emt 0:00:00]} 4. Ba4 {[%emt 0:00:30]} Nf6 {[%emt 0:00:30]} 5. O-O {[%emt 0:00:00]} Be7 {[%emt 0:00:00]} 6. Re1 {[%emt 0:00:00]} b5 {[%emt 0:00:00]} 7. Bb3 {[%emt 0:00:30]} d6 {[%emt 0:00:00]} 8. a4 {[%emt 0:00:00]} Bg4 {[%emt 0:00:00]} 9. c3 {[%emt 0:00:00]} O-O {[%emt 0:00:30]} 10. h3 {[%emt 0:04:30]} Bh5 {[%emt 0:00:30]} 11. d3 {[%emt 0:02:30]} Na5 {[%emt 0:00:30]} 12. Bc2 {[%emt 0:00:30]} b4 {[%emt 0:00:00]} 13. Nbd2 {[%emt 0:09:30]} Rb8 {[%emt 0:04:00]} 14. d4 {[%emt 0:01:30]} Nd7 {[%emt 0:12:30]} 15. g4 {[%emt 0:02:30]} Bg6 {[%emt 0:00:30]} 16. Nf1 {[%emt 0:04:30]} exd4 {[%emt 0:12:30]} 17. cxd4 {[%emt 0:01:30]} c5 {[%emt 0:01:30]} 18. Bf4 {[%emt 0:10:30]} Re8 {[%emt 0:19:30]} 19. e5 {[%emt 0:22:30]} dxe5 {[%emt 0:04:30]} 20. Nxe5 {[%emt 0:03:30]} Nxe5 {[%emt 0:09:30]} 21. Bxe5 {[%emt 0:00:30]} Bxc2 {[%emt 0:01:30]} 22. Qxc2 {[%emt 0:00:30]} Rc8 {[%emt 0:00:30]} 23. Rad1 {[%emt 0:08:30]} cxd4 {[%emt 0:03:30]} 24. Qd3 {[%emt 0:01:30]} Nc6 {[%emt 0:07:08]} 25. Bxd4 {[%emt 0:02:30]} Qa5 {[%emt 0:00:58]} 26. Qb3 {[%emt 0:01:30]} h5 {[%emt 0:02:42]} 27. Ng3 {[%emt 0:03:30]} hxg4 {[%emt 0:02:43]} 28. hxg4 {[%emt 0:00:30]} Qg5 {[%emt 0:02:06]} 29. Qf3 {[%emt 0:00:30]} Nxd4 {[%emt 0:02:47]} 30. Rxd4 {[%emt 0:00:30]} Bf6 {[%emt 0:00:41]} 31. Rxe8+ {[%emt 0:00:30]} Rxe8 {[%emt 0:00:01]} 32. Rxb4 {[%emt 0:00:58]} Bxb2 {[%emt 0:03:48]} 33. Kg2 {[%emt 0:00:45]} Be5 {[%emt 0:01:53]} 34. Rb7 {[%emt 0:00:59]} Qf6 {[%emt 0:01:38]} 35. Ne4 {[%emt 0:08:23]} Qg6 {[%emt 0:01:53]} 36. Qf5 {[%emt 0:02:29]} Qxf5 {[%emt 0:01:19]} 37. gxf5 {[%emt 0:00:33]} Bd4 {[%emt 0:00:30]} 38. Kf3 {[%emt 0:00:21]} Rd8 {[%emt 0:00:08]} 39. Ng5 {[%emt 0:00:20]} Bf6 {[%emt 0:00:15]} 40. Ne4 {[%emt 0:03:29]} Rd5 {[%emt 0:00:18]} 41. Nxf6+ {[%emt 0:01:04]} gxf6 {[%emt 0:00:06]} 42. Ke4 {[%emt 0:00:08]} Rc5 {[%emt 0:01:48]} 43. Rb6 {[%emt 0:01:35]} Rc4+ {[%emt 0:00:30]} 44. Kd5 {[%emt 0:00:05]} Rxa4 {[%emt 0:00:07]} 45. Rxf6 {[%emt 0:00:02]} Kg7 {[%emt 0:00:43]} 46. Rb6 {[%emt 0:00:06]} a5 {[%emt 0:00:27]} 47. Ke5 {[%emt 0:00:34]} Ra2 {[%emt 0:00:28]} 48. f3 {[%emt 0:01:14]} a4 {[%emt 0:00:45]} 49. Kf4 {[%emt 0:00:29]} a3 {[%emt 0:00:34]} 50. Ra6 {[%emt 0:00:10]} Ra1 {[%emt 0:00:04]} 51. Kg5 {[%emt 0:00:22]} Rg1+ {[%emt 0:00:38]} 52. Kf4 {[%emt 0:00:09]} Ra1 {[%emt 0:00:00]} 53. Kg5 {[%emt 0:00:02]} f6+ {[%emt 0:01:11]} 54. Kf4 {[%emt 0:00:05]} Kf7 {[%emt 0:00:42]} 55. Ra7+ {[%emt 0:00:11]} Ke8 {[%emt 0:00:08]} 56. Ra6 {[%emt 0:00:10]} Ke7 {[%emt 0:00:19]} 57. Ra7+ {[%emt 0:00:11]} Kd8 {[%emt 0:00:06]} 58. Ra6 {[%emt 0:00:04]} a2 {[%emt 0:00:11]} 59. Ra7 {[%emt 0:00:31]} Kc8 {[%emt 0:00:08]} 60. Ra3 {[%emt 0:00:06]} Kb7 {[%emt 0:00:07]} 61. Ra4 {[%emt 0:00:07]} Kb6 {[%emt 0:00:18]} 62. Ra8 {[%emt 0:00:05]} Kc5 {[%emt 0:00:01]} 63. Rc8+ {[%emt 0:00:05]} Kd4 {[%emt 0:00:39]} 64. Rd8+ {[%emt 0:00:06]} Kc3 {[%emt 0:00:07]} 65. Rc8+ {[%emt 0:00:03]} Kd3 {[%emt 0:00:43]} 1/2-1/2

[Event "17th Spilimbergo Open 2019"]
[Site "Spilimbergo"]
[Date "2019.08.12"]
[Round "5.11"]
[White "Petrov, Martin"]
[Black "Emanuel, Yahav"]
[Result "1-0"]
[WhiteElo "2477"]
[BlackElo "2379"]
[PlyCount "75"]
[EventDate "2019.08.09"]
[EventType "swiss"]
[EventCountry "ITA"]
[TimeControl "5400+30"]
[WhiteClock "0:00:35"]
[BlackClock "0:02:03"]

1. e4 {[%emt 0:02:30]} e5 {[%emt 0:00:30]} 2. Nf3 {[%emt 0:00:00]} Nc6 {[%emt 0:00:00]} 3. Bc4 {[%emt 0:00:00]} Nf6 {[%emt 0:00:00]} 4. d3 {[%emt 0:00:30]} Be7 {[%emt 0:00:30]} 5. O-O {[%emt 0:00:00]} O-O {[%emt 0:00:30]} 6. a4 {[%emt 0:00:00]} d6 {[%emt 0:15:30]} 7. a5 {[%emt 0:00:30]} a6 {[%emt 0:00:30]} 8. Re1 {[%emt 0:00:00]} Be6 {[%emt 0:05:30]} 9. Nbd2 {[%emt 0:00:00]} Qd7 {[%emt 0:15:30]} 10. c3 {[%emt 0:00:30]} Rfe8 {[%emt 0:03:30]} 11. Bxe6 {[%emt 0:24:30]} Qxe6 {[%emt 0:08:30]} 12. d4 {[%emt 0:05:30]} exd4 {[%emt 0:00:00]} 13. cxd4 {[%emt 0:00:30]} d5 {[%emt 0:01:00]} 14. e5 {[%emt 0:00:00]} Nd7 {[%emt 0:00:30]} 15. Nf1 {[%emt 0:01:00]} Bb4 {[%emt 0:12:30]} 16. Bd2 {[%emt 0:01:30]} Bxd2 {[%emt 0:00:30]} 17. Qxd2 {[%emt 0:00:30]} f6 {[%emt 0:02:30]} 18. exf6 {[%emt 0:13:30]} Qxf6 {[%emt 0:00:00]} 19. Ne3 {[%emt 0:00:30]} Qf7 {[%emt 0:02:00]} 20. Qd3 {[%emt 0:06:30]} Nf6 {[%emt 0:01:30]} 21. Qb3 {[%emt 0:01:30]} Qd7 {[%emt 0:02:30]} 22. Rec1 {[%emt 0:01:30]} Rab8 {[%emt 0:07:30]} 23. Rc5 {[%emt 0:05:30]} Ne7 {[%emt 0:01:51]} 24. Ne5 {[%emt 0:00:30]} Qd6 {[%emt 0:00:29]} 25. Rc2 {[%emt 0:06:30]} c6 {[%emt 0:04:55]} 26. f4 {[%emt 0:09:30]} Ne4 {[%emt 0:05:26]} 27. Re1 {[%emt 0:00:38]} Ng6 {[%emt 0:04:38]} 28. g3 {[%emt 0:12:00]} Nxe5 {[%emt 0:00:39]} 29. fxe5 {[%emt 0:02:05]} Qe6 {[%emt 0:00:22]} 30. Ng2 {[%emt 0:01:59]} g5 {[%emt 0:01:49]} 31. Rce2 {[%emt 0:01:34]} Re7 {[%emt 0:01:13]} 32. Rf1 {[%emt 0:01:01]} c5 {[%emt 0:02:16]} 33. Ne3 {[%emt 0:01:18]} Rd8 {[%emt 0:01:03]} 34. Nf5 {[%emt 0:00:58]} Rf7 {[%emt 0:00:38]} 35. g4 {[%emt 0:00:13]} Re8 {[%emt 0:00:34]} 36. Rxe4 {[%emt 0:01:00]} c4 {[%emt 0:00:28]} 37. Qh3 {[%emt 0:00:41]} dxe4 {[%emt 0:00:34]} 38. Nh6+ 1-0

[Event "17th Spilimbergo Open 2019"]
[Site "Spilimbergo"]
[Date "2019.08.12"]
[Round "5.12"]
[White "Carnicelli, Valerio"]
[Black "Nagy, Gabor"]
[Result "0-1"]
[WhiteElo "2282"]
[BlackElo "2473"]
[PlyCount "44"]
[EventDate "2019.08.09"]
[EventType "swiss"]
[EventCountry "ITA"]
[TimeControl "5400+30"]
[WhiteClock "1:27:00"]
[BlackClock "1:06:00"]

1. e4 {[%emt 0:00:30]} c5 {[%emt 0:01:30]} 2. Nf3 {[%emt 0:00:00]} Nc6 {[%emt 0:00:30]} 3. d4 {[%emt 0:00:00]} cxd4 {[%emt 0:00:30]} 4. Nxd4 {[%emt 0:00:00]} Qb6 {[%emt 0:00:00]} 5. Nb3 {[%emt 0:00:00]} Nf6 {[%emt 0:00:00]} 6. Nc3 {[%emt 0:00:30]} e6 {[%emt 0:00:30]} 7. Qe2 {[%emt 0:00:00]} Bb4 {[%emt 0:00:30]} 8. Bd2 {[%emt 0:00:00]} O-O {[%emt 0:00:30]} 9. O-O-O {[%emt 0:00:30]} d5 {[%emt 0:00:00]} 10. exd5 {[%emt 0:05:30]} exd5 {[%emt 0:00:00]} 11. a3 {[%emt 0:12:30]} Bxc3 {[%emt 0:00:30]} 12. Bxc3 {[%emt 0:00:00]} Re8 {[%emt 0:00:30]} 13. Qb5 {[%emt 0:04:00]} Qxf2 {[%emt 0:01:30]} 14. Bd3 {[%emt 0:00:30]} a6 {[%emt 0:01:30]} 15. Qa4 {[%emt 0:04:30]} b5 {[%emt 0:00:30]} 16. Bxb5 {[%emt 0:04:30]} axb5 {[%emt 0:01:30]} 17. Qxa8 {[%emt 0:00:00]} Bf5 {[%emt 0:00:30]} 18. Rd2 {[%emt 0:02:00]} Qxd2+ {[%emt 0:00:30]} 19. Nxd2 {[%emt 0:00:00]} Rxa8 {[%emt 0:00:00]} 20. Rf1 {[%emt 0:00:00]} d4 {[%emt 0:02:00]} 21. Rxf5 {[%emt 0:00:30]} dxc3 {[%emt 0:00:30]} 22. Rxb5 {[%emt 0:00:00]} cxd2+ 0-1

[Event "17th Spilimbergo Open 2019"]
[Site "Spilimbergo"]
[Date "2019.08.12"]
[Round "6.2"]
[White "Nagy, Gabor"]
[Black "Nisipeanu, Liviu-Dieter"]
[Result "1/2-1/2"]
[WhiteElo "2473"]
[BlackElo "2666"]
[PlyCount "28"]
[EventDate "2019.08.09"]
[EventType "swiss"]
[EventCountry "ITA"]
[TimeControl "5400+30"]
[WhiteClock "1:31:00"]
[BlackClock "1:27:00"]

1. Nf3 {[%emt 0:01:30]} Nf6 {[%emt 0:00:30]} 2. d4 {[%emt 0:00:30]} g6 {[%emt 0:00:30]} 3. c4 {[%emt 0:03:30]} Bg7 {[%emt 0:00:30]} 4. g3 {[%emt 0:00:30]} O-O {[%emt 0:00:00]} 5. Bg2 {[%emt 0:00:00]} d6 {[%emt 0:00:00]} 6. O-O {[%emt 0:00:00]} Nbd7 {[%emt 0:00:30]} 7. Nc3 {[%emt 0:01:30]} e5 {[%emt 0:00:00]} 8. Qc2 {[%emt 0:00:30]} exd4 {[%emt 0:02:00]} 9. Nxd4 {[%emt 0:00:30]} Nb6 {[%emt 0:00:00]} 10. Rd1 {[%emt 0:00:30]} Nxc4 {[%emt 0:01:00]} 11. Ncb5 {[%emt 0:00:30]} a6 {[%emt 0:00:00]} 12. Qxc4 {[%emt 0:00:30]} axb5 {[%emt 0:00:00]} 13. Nxb5 {[%emt 0:00:00]} Ne8 {[%emt 0:00:30]} 14. Qb4 {[%emt 0:00:00]} c6 1/2-1/2